fUST/lending_fUST_20251026
["ID","MTS","AMOUNT","RATE_DAILY","PERIOD"]
[392436105,1761473449773,-1412.61437259,0.000237,2]
[392436106,1761473449783,-500.0,0.00023719,2]
[392436107,1761473449792,-500.0,0.00023761,2]
[392436108,1761473449801,-500.0,0.000238,2]
[392436109,1761473449811,-1412.61437259,0.000239,2]
[392436110,1761473449821,-500.0,0.00023913,2]
[392436111,1761473449831,-500.0,0.00023952,2]
[392436112,1761473449843,-500.0,0.00023952,2]
[392436113,1761473449854,-500.0,0.00023952,2]
[392436114,1761473449864,-500.0,0.00023952,2]
[392436115,1761473449874,-500.0,0.00023952,2]
[392436116,1761473449883,-500.0,0.00023952,2]
[392436117,1761473449893,-500.0,0.00023952,2]
[392436118,1761473449903,-500.0,0.00023952,2]
[392436119,1761473449912,-500.0,0.00023952,2]
[392436120,1761473449921,-342.955187,0.00023952,2]
[392436121,1761473449932,-500.0,0.00023952,2]
[392436122,1761473449941,-500.0,0.00023952,2]
[392436123,1761473449951,-500.0,0.00024004,2]
[392436124,1761473449960,-500.0,0.00024018,2]
[392436125,1761473449970,-500.0,0.00024032,2]
[392436126,1761473449979,-500.0,0.00024086,2]
[392436127,1761473449991,-1260.0,0.00024109,2]
[392436128,1761473450000,-1613.0,0.00024309,2]
[392436129,1761473450010,-892.63773783,0.00024332,2]
[392436130,1761473450019,-1000.0,0.000245,2]
[392436131,1761473450028,-1000.0,0.000245,2]
[392436132,1761473450037,-1000.0,0.000245,2]
[392436133,1761473450046,-1000.0,0.000245,2]
[392436134,1761473450055,-1000.0,0.000245,2]
[392436135,1761473450065,-1000.0,0.000245,2]
[392436136,1761473450075,-1000.0,0.000245,2]
[392436137,1761473450084,-1000.0,0.000245,2]
[392436138,1761473450093,-237.47008048,0.000245,2]
[392436139,1761473450103,-598.77289346,0.000245,2]
[392436140,1761473450113,-1000.0,0.000245,2]
[392436141,1761473450122,-1360.0,0.00024657,2]
[392436142,1761473450131,-380.0,0.00024658,2]
[392436143,1761473450140,-757.0,0.00024658,2]
[392436144,1761473450149,-757.0,0.00024713,2]
[392436145,1761473450158,-500.0,0.00024756,2]
[392436146,1761473450167,-757.0,0.00024768,2]
[392436147,1761473450176,-63692.7297725,0.000248,2]
[392436148,1761473450186,-178.79337691,0.00024806,2]
[392436149,1761473450195,-757.0,0.00024822,2]
[392436150,1761473450205,-4246.18198483,0.00024863,2]
[392436151,1761473450214,-500.0,0.00024873,2]
[392436152,1761473450224,-500.0,0.00024873,2]
[392436153,1761473450233,-500.0,0.00024873,2]
[392436154,1761473450242,-194.98767607,0.00024873,2]
[392436155,1761473450252,-560.31313371,0.00024873,2]
[392436156,1761473450263,-500.0,0.00024873,2]
[392436157,1761473450272,-500.0,0.00024873,2]
[392436158,1761473450281,-423.14101175,0.00024873,2]
[392436159,1761473450290,-500.0,0.00024873,2]
[392436160,1761473450300,-500.0,0.00024873,2]
[392436161,1761473450309,-500.0,0.00024873,2]
[392436162,1761473450319,-500.0,0.00024873,2]
[392436163,1761473450329,-500.0,0.00024873,2]
[392436164,1761473450340,-500.0,0.00024873,2]
[392436165,1761473450350,-500.0,0.00024873,2]
[392436166,1761473450361,-500.0,0.00024873,2]
[392436167,1761473450371,-500.0,0.00024873,2]
[392436168,1761473450382,-500.0,0.00024873,2]
[392436169,1761473450393,-158.25431746,0.00024873,2]
[392436170,1761473450403,-251.33071121,0.00024873,2]
[392436171,1761473450412,-500.0,0.00024873,2]
[392436172,1761473450422,-237.08915889,0.00024873,2]
[392436173,1761473450434,-160.26954394,0.00024873,2]
[392436174,1761473450443,-500.0,0.00024873,2]
[392436175,1761473450453,-500.0,0.00024873,2]
[392436176,1761473450463,-500.0,0.00024873,2]
[392436177,1761473450472,-158.66710012,0.00024873,2]
[392436178,1761473450482,-500.0,0.00024873,2]
[392436179,1761473450491,-158.65465771,0.00024873,2]
[392436180,1761473450504,-500.0,0.00024873,2]
[392436181,1761473450514,-399.69667187,0.00024873,2]
[392436182,1761473450524,-257.44191945,0.00024873,2]
[392436183,1761473450535,-159.95958751,0.00024873,2]
[392436184,1761473450544,-158.25718461,0.00024873,2]
[392436185,1761473450554,-500.0,0.00024873,2]
[392436186,1761473450573,-501.62139466,0.00024873,2]
[392436187,1761473450588,-500.0,0.00024873,2]
[392436188,1761473450597,-286.13,0.00024873,2]
[392436189,1761473450606,-500.0,0.00024873,2]
[392436190,1761473450616,-500.0,0.00024873,2]
[392436191,1761473450625,-500.0,0.00024873,2]
[392436192,1761473450635,-158.63927594,0.00024873,2]
[392436193,1761473450644,-500.0,0.00024873,2]
[392436194,1761473450653,-500.0,0.00024873,2]
[392436195,1761473450662,-500.0,0.00024873,2]
[392436196,1761473450671,-500.0,0.00024873,2]
[392436197,1761473450682,-160.23874274,0.00024873,2]
[392436198,1761473450692,-500.0,0.00024873,2]
[392436199,1761473450701,-500.0,0.00024873,2]
[392436200,1761473450709,-238.13839871,0.00024873,2]
[392436201,1761473450720,-559.11225884,0.00024873,2]
[392436202,1761473450730,-313.69761343,0.00024873,2]
[392436203,1761473450739,-500.0,0.00024873,2]
[392436204,1761473450748,-161.05569953,0.00024873,2]
[392436205,1761473450842,-158.64937056,0.00024873,2]
[392436206,1761473450852,-500.0,0.00024873,2]
[392436207,1761473450863,-160.24510299,0.00024873,2]
[392436208,1761473450872,-500.0,0.00024873,2]
[392436209,1761473450881,-500.0,0.00024873,2]
[392436210,1761473450891,-236.39795775,0.00024873,2]
[392436211,1761473450900,-158.24102727,0.00024873,2]
[392436212,1761473450911,-160.01420534,0.00024873,2]
[392436213,1761473450920,-316.52856808,0.00024873,2]
[392436214,1761473450931,-500.0,0.00024873,2]
[392436215,1761473450942,-500.0,0.00024873,2]
[392436216,1761473450952,-576.27308635,0.00024873,2]
[392436217,1761473450961,-158.64247514,0.00024873,2]
[392436218,1761473450970,-158.26768916,0.00024873,2]
[392436219,1761473450979,-500.0,0.00024873,2]
[392436220,1761473450988,-500.0,0.00024873,2]
[392436221,1761473450997,-500.0,0.00024873,2]
[392436222,1761473451006,-500.0,0.00024873,2]
[392436223,1761473451016,-500.0,0.00024873,2]
[392436224,1761473451026,-500.0,0.00024873,2]
[392436225,1761473451034,-500.0,0.00024873,2]
[392436226,1761473451044,-500.0,0.00024873,2]
[392436227,1761473451053,-258.85250872,0.00024873,2]
[392436228,1761473451062,-500.0,0.00024873,2]
[392436229,1761473451071,-500.86843424,0.00024873,2]
[392436230,1761473451080,-500.0,0.00024873,2]
[392436231,1761473451089,-500.0,0.00024873,2]
[392436232,1761473451098,-162.16565961,0.00024873,2]
[392436233,1761473451107,-500.0,0.00024873,2]
[392436234,1761473451116,-500.0,0.00024873,2]
[392436235,1761473451125,-500.0,0.00024873,2]
[392436236,1761473451134,-500.0,0.00024873,2]
[392436237,1761473451143,-631.00451561,0.00024873,2]
[392436238,1761473451154,-500.0,0.00024873,2]
[392436239,1761473451163,-500.0,0.00024873,2]
[392436240,1761473451171,-533.0723769,0.00024873,2]
[392436241,1761473451180,-520.22487058,0.00024873,2]
[392436242,1761473451189,-164.64982642,0.00024873,2]
[392436243,1761473451198,-500.0,0.00024873,2]
[392436244,1761473451208,-451.67462973,0.00024873,2]
[392436245,1761473451217,-500.0,0.00024873,2]
[392436246,1761473451226,-500.0,0.00024873,2]
[392436247,1761473451235,-500.0,0.00024873,2]
[392436248,1761473451244,-175.9664951,0.00024873,2]
[392436249,1761473451254,-512.74647064,0.00024873,2]
[392436250,1761473451263,-500.0,0.00024873,2]
[392436251,1761473451271,-500.0,0.00024873,2]
[392436252,1761473451280,-500.0,0.00024873,2]
[392436253,1761473451289,-500.0,0.00024873,2]
[392436254,1761473451298,-500.0,0.00024873,2]
[392436255,1761473451307,-171.68473287,0.00024873,2]
[392436256,1761473451316,-529.39107204,0.00024873,2]
[392436257,1761473451324,-500.0,0.00024873,2]
[392436258,1761473451333,-500.0,0.00024873,2]
[392436259,1761473451342,-500.0,0.00024873,2]
[392436260,1761473451351,-500.0,0.00024873,2]
[392436261,1761473451360,-500.0,0.00024873,2]
[392436262,1761473451369,-156.74376621,0.00024873,2]
[392436263,1761473451378,-757.0,0.00024877,2]
[392436264,1761473451387,-693348.845501,0.000249,2]
[392436265,1761473451396,-757.0,0.00024932,2]
[392436266,1761473451406,-757.0,0.00024987,2]
[392436267,1761473451414,-8492.36396966,0.0002499,2]
[392436268,1761473451424,-97648.17255878,0.00025,15]
[392436269,1761473451435,-206.026599,0.00025,2]
[392436270,1761473451445,-984.0,0.0002503,2]
[392436271,1761473451453,-632.0,0.0002503,2]
[392436272,1761473451463,-2166.0,0.0002503,2]
[392436273,1761473451472,-757.0,0.00025042,2]
[392436274,1761473451481,-1500.0,0.00025048,2]
[392436275,1761473451492,-1500.0,0.00025048,2]
[392436276,1761473451502,-1500.0,0.00025048,2]
[392436277,1761473451511,-1625.86504119,0.00025048,2]
[392436278,1761473451520,-1500.0,0.00025048,2]
[392436279,1761473451529,-1500.0,0.00025048,2]
[392436280,1761473451538,-1500.0,0.00025048,2]
[392436281,1761473451547,-1500.0,0.00025048,2]
[392436282,1761473451556,-1500.0,0.00025048,2]
[392436283,1761473451569,-757.0,0.00025096,2]
[392436284,1761473451578,-500.0,0.00025115,7]
[392436285,1761473451587,-473.4,0.00025135,2]
[392436286,1761473451596,-757.0,0.00025151,2]
[392436287,1761473451605,-168.0,0.00025195,2]
[392436288,1761473451614,-1460.0,0.00025205,2]
[392436289,1761473451623,-757.0,0.00025206,2]
[392436290,1761473451632,-757.0,0.00025261,2]
[392436291,1761473451641,-757.0,0.00025316,2]
[392436292,1761473451649,-757.0,0.0002537,2]
[392436293,1761473451658,-1000.0,0.00025385,20]
[392436294,1761473451667,-244.0,0.00025385,20]
[392436295,1761473451676,-163.17280106,0.00025397,30]
[392436296,1761473451685,-4246.18198483,0.00025411,2]
[392436297,1761473451695,-1000.0,0.00025421,2]
[392436298,1761473451704,-1000.0,0.00025421,2]
[392436299,1761473451712,-179.91384955,0.00025421,2]
[392436300,1761473451721,-1000.0,0.00025421,2]
[392436301,1761473451730,-1141.76002032,0.00025421,2]
[392436302,1761473451738,-288.9992083,0.00025421,2]
[392436303,1761473451747,-1000.0,0.00025421,2]
[392436304,1761473451756,-1000.0,0.00025421,2]
[392436305,1761473451765,-1000.0,0.00025421,2]
[392436306,1761473451774,-1000.0,0.00025421,2]
[392436307,1761473451782,-1000.0,0.00025421,2]
[392436308,1761473451791,-716.04665995,0.00025421,2]
[392436309,1761473451800,-1000.0,0.00025421,2]
[392436310,1761473451809,-1000.0,0.00025421,2]
[392436311,1761473451818,-1000.0,0.00025421,2]
[392436312,1761473451826,-1000.0,0.00025421,2]
[392436313,1761473451835,-462.48615631,0.00025421,2]
[392436314,1761473451844,-1000.0,0.00025421,2]
[392436315,1761473451853,-500.8914348,0.00025421,2]
[392436316,1761473451862,-717.11082579,0.00025421,2]
[392436317,1761473451871,-1000.0,0.00025421,2]
[392436318,1761473451880,-1000.0,0.00025421,2]
[392436319,1761473451890,-1000.0,0.00025421,2]
[392436320,1761473451899,-676.34529036,0.00025421,2]
[392436321,1761473451908,-1000.0,0.00025421,2]
[392436322,1761473451918,-1000.0,0.00025421,2]
[392436323,1761473451927,-1000.0,0.00025421,2]
[392436324,1761473451936,-1000.0,0.00025421,2]
[392436325,1761473451946,-1000.0,0.00025421,2]
[392436326,1761473451956,-1000.0,0.00025421,2]
[392436327,1761473451965,-1060.91886265,0.00025421,2]
[392436328,1761473451974,-829.56706991,0.00025421,2]
[392436329,1761473451983,-1000.0,0.00025421,2]
[392436330,1761473451992,-202.20140552,0.00025421,2]
[392436331,1761473452002,-941.30972559,0.00025421,2]
[392436332,1761473452012,-1000.0,0.00025421,2]
[392436333,1761473452021,-1000.0,0.00025421,2]
[392436334,1761473452030,-1128.28333195,0.00025421,2]
[392436335,1761473452039,-1000.0,0.00025421,2]
[392436336,1761473452048,-1000.0,0.00025421,2]
[392436337,1761473452057,-1000.0,0.00025421,2]
[392436338,1761473452066,-1000.0,0.00025421,2]
[392436339,1761473452075,-1000.0,0.00025421,2]
[392436340,1761473452084,-529.72570306,0.00025421,2]
[392436341,1761473452094,-1000.0,0.00025421,2]
[392436342,1761473452103,-531.07594941,0.00025421,2]
[392436343,1761473452113,-1000.0,0.00025421,2]
[392436344,1761473452122,-419.77841348,0.00025421,2]
[392436345,1761473452133,-1006.93089372,0.00025421,2]
[392436346,1761473452142,-1000.0,0.00025421,2]
[392436347,1761473452153,-1000.0,0.00025421,2]
[392436348,1761473452163,-1000.0,0.00025421,2]
[392436349,1761473452173,-1000.0,0.00025421,2]
[392436350,1761473452182,-924.15493678,0.00025421,2]
[392436351,1761473452193,-1000.0,0.00025421,2]
[392436352,1761473452203,-1000.0,0.00025421,2]
[392436353,1761473452214,-254.51535027,0.00025421,2]
[392436354,1761473452223,-216.80777264,0.00025421,2]
[392436355,1761473452232,-667.04069706,0.00025421,2]
[392436356,1761473452241,-1000.0,0.00025421,2]
[392436357,1761473452250,-1000.0,0.00025421,2]
[392436358,1761473452260,-1082.41851312,0.00025421,2]
[392436359,1761473452269,-501.62867031,0.00025421,2]
[392436360,1761473452279,-1000.0,0.00025421,2]
[392436361,1761473452290,-247.20496851,0.00025421,2]
[392436362,1761473452300,-1000.0,0.00025421,2]
[392436363,1761473452310,-1000.0,0.00025421,2]
[392436364,1761473452319,-332.26370797,0.00025421,2]
[392436365,1761473452329,-1000.0,0.00025421,2]
[392436366,1761473452337,-757.0,0.00025425,2]
[392436367,1761473452349,-757.0,0.0002548,2]
[392436368,1761473452359,-4246.18198483,0.00025486,2]
[392436369,1761473452368,-4983.6868835,0.00025496,2]
[392436370,1761473452377,-163.17280106,0.00025534,30]
[392436371,1761473452387,-757.0,0.00025535,2]
[392436372,1761473452396,-757.0,0.0002559,2]
[392436373,1761473452407,-2000.0,0.00025596,2]
[392436374,1761473452416,-1951.95407939,0.00025596,2]
[392436375,1761473452424,-2000.0,0.00025596,2]
[392436376,1761473452434,-2000.0,0.00025596,2]
[392436377,1761473452445,-2000.0,0.00025596,2]
[392436378,1761473452536,-2000.0,0.00025596,2]
[392436379,1761473452545,-2000.0,0.00025596,2]
[392436380,1761473452555,-2000.0,0.00025596,2]
[392436381,1761473452570,-163.17280106,0.00025644,30]
[392436382,1761473452579,-757.0,0.00025644,2]
[392436383,1761473452591,-757.0,0.00025699,2]
[392436384,1761473452601,-168.0,0.000257,2]
[392436385,1761473452611,-1560.0,0.00025753,2]
[392436386,1761473452621,-757.0,0.00025754,2]
[392436387,1761473452631,-163.17280106,0.00025781,30]
[392436388,1761473452640,-757.0,0.00025809,2]
[392436389,1761473452651,-757.0,0.00025863,2]
[392436390,1761473452660,-163.17280106,0.0002589,30]
[392436391,1761473452669,-768.2254049,0.00025918,2]
[392436392,1761473452679,-1500.0,0.00025968,2]
[392436393,1761473452689,-1500.0,0.00025968,2]
[392436394,1761473452697,-1500.0,0.00025968,2]
[392436395,1761473452706,-1636.00660496,0.00025968,2]
[392436396,1761473452717,-255.45180363,0.00025968,2]
[392436397,1761473452726,-1500.0,0.00025968,2]
[392436398,1761473452737,-1500.0,0.00025968,2]
[392436399,1761473452747,-1500.0,0.00025968,2]
[392436400,1761473452757,-1500.0,0.00025968,2]
[392436401,1761473452765,-1500.0,0.00025968,2]
[392436402,1761473452774,-1500.0,0.00025968,2]
[392436403,1761473452784,-1500.0,0.00025968,2]
[392436404,1761473452794,-1500.0,0.00025968,2]
[392436405,1761473452804,-1500.0,0.00025968,2]
[392436406,1761473452813,-1500.0,0.00025968,2]
[392436407,1761473452824,-1500.0,0.00025968,2]
[392436408,1761473452833,-1500.0,0.00025968,2]
[392436409,1761473452842,-1500.0,0.00025968,2]
[392436410,1761473452852,-1500.0,0.00025968,2]
[392436411,1761473452862,-1057.31795192,0.00025968,2]
[392436412,1761473452871,-340.18414367,0.00025968,2]
[392436413,1761473452881,-1376.22034633,0.00025968,2]
[392436414,1761473452890,-955.42218243,0.00025968,2]
[392436415,1761473452899,-1500.0,0.00025968,2]
[392436416,1761473452909,-1500.0,0.00025968,2]
[392436417,1761473452918,-1327.33359806,0.00025968,2]
[392436418,1761473452928,-1500.0,0.00025968,2]
[392436419,1761473452938,-1500.0,0.00025968,2]
[392436420,1761473452947,-1500.0,0.00025968,2]
[392436421,1761473452956,-1500.0,0.00025968,2]
[392436422,1761473452966,-1613.09890156,0.00025968,2]
[392436423,1761473452975,-1500.0,0.00025968,2]
[392436424,1761473452985,-1500.0,0.00025968,2]
[392436425,1761473452994,-1500.0,0.00025968,2]
[392436426,1761473453004,-1500.0,0.00025968,2]
[392436427,1761473453013,-355.94501198,0.00025968,2]
[392436428,1761473453033,-981.39015998,0.00025968,2]
[392436429,1761473481273,200.0,0.00033483,30]
[392436438,1761473783253,200.0,0.00033482,30]
[392436440,1761474081694,200.0,0.00033418,30]
[392436456,1761474381639,200.0,0.00033418,30]
[392436461,1761474446340,4412433.1940361,0.00033418,20]
[392436467,1761474520285,895.840502,0.00013699,2]
[392436539,1761474640736,-196.0,0.00014998,2]
[392436540,1761474640746,-196.0,0.0001515,2]
[392436541,1761474640755,-196.0,0.00015314,2]
[392436542,1761474640764,-196.0,0.00015478,2]
[392436543,1761474640773,-196.0,0.00015642,2]
[392436544,1761474640782,-196.0,0.00015806,2]
[392436545,1761474640791,-196.0,0.00015969,2]
[392436546,1761474640800,-68.0,0.00016127,2]
[392436547,1761474643561,-144.376664,0.00016127,2]
[392436548,1761474643570,-196.0,0.00016133,2]
[392436549,1761474643581,-196.0,0.00016297,2]
[392436550,1761474643590,-196.0,0.00016461,2]
[392436551,1761474643599,-196.0,0.00016625,2]
[392436552,1761474643608,-196.0,0.00016789,2]
[392436553,1761474643617,-600.0,0.00016885,2]
[392436554,1761474643626,-196.0,0.00016953,2]
[392436556,1761474643636,-170.0,0.00016995,2]
[392436557,1761474643645,-196.0,0.00017117,2]
[392436558,1761474643654,-196.0,0.00017281,2]
[392436559,1761474643663,-196.0,0.00017444,2]
[392436560,1761474643672,-2116.38753435,0.000176,2]
[392436561,1761474643682,-196.0,0.00017608,2]
[392436562,1761474643691,-196.0,0.00017772,2]
[392436563,1761474643700,-196.0,0.00017936,2]
[392436564,1761474643709,-300.0,0.00017999,2]
[392436565,1761474643718,-173.74614518,0.00018,2]
[392436567,1761474643727,-707.64159557,0.00018,2]
[392436568,1761474643736,-760.9314145,0.00018,2]
[392436569,1761474643746,-187.10934598,0.00018,2]
[392436570,1761474643755,-191.8197303,0.00018,2]
[392436571,1761474643764,-335.5264103,0.00018096,2]
[392436572,1761474643773,-204.92654251,0.000181,2]
[392436573,1761474643782,-173.74614518,0.000182,2]
[392436574,1761474643791,-707.64159557,0.000182,2]
[392436575,1761474643801,-760.9314145,0.000182,2]
[392436576,1761474643810,-187.10934598,0.000182,2]
[392436577,1761474643819,-191.8197303,0.000182,2]
[392436578,1761474643829,-173.74614518,0.000184,2]
[392436579,1761474643838,-707.64159557,0.000184,2]
[392436580,1761474643847,-760.9314145,0.000184,2]
[392436581,1761474643856,-707.64159557,0.000185,2]
[392436582,1761474643865,-760.9314145,0.000185,2]
[392436583,1761474643875,-720.0,0.00018573,2]
[392436584,1761474643884,-170.0,0.00018659,2]
[392436585,1761474643893,-707.64159557,0.000187,2]
[392436586,1761474643901,-760.9314145,0.000187,2]
[392436587,1761474643910,-277.0,0.00019,2]
[392436588,1761474643919,-281.4,0.000191,2]
[392436589,1761474643928,-420.0,0.00019639,2]
[392436590,1761474643937,-319.21557941,0.0002,2]
[392436591,1761474643946,-200.72429914,0.0002,2]
[392436592,1761474643955,-501.417,0.00020061,2]
[392436593,1761474643964,-2166.0,0.00020148,2]
[392436594,1761474643973,-411.0,0.00020148,2]
[392436595,1761474643982,-895.840502,0.00020187,2]
[392436596,1761474643991,-170.0,0.00020323,2]
[392436597,1761474643999,-864.0,0.00020431,2]
[392436598,1761474644008,-180.84611996,0.00020476,2]
[392436599,1761474644017,-1376.3096837,0.0002061,2]
[392436600,1761474644027,-253.87681165,0.000209,2]
[392436601,1761474644036,-205.30915452,0.00021,2]
[392436602,1761474644044,-587.0,0.00021428,2]
[392436603,1761474644054,-170.0,0.00021987,2]
[392436604,1761474644063,-358.27025215,0.00022,2]
[392436605,1761474644072,-2663.60188034,0.000224,2]
[392436606,1761474644081,-406.68401868,0.00022474,20]
[392436607,1761474644094,-593.31598132,0.00022474,20]
[392436608,1761474644103,-1022.77096712,0.000225,2]
[392436609,1761474644112,-1983.43911393,0.00023011,2]
[392436610,1761474644121,-2166.0,0.00023148,2]
[392436611,1761474644131,-411.0,0.00023148,2]
[392436612,1761474644140,-1983.43911393,0.00023276,2]
[392436613,1761474644150,-1983.43911393,0.0002338,2]
[392436614,1761474644159,-823.0,0.00023381,2]
[392436615,1761474644167,-1000.0,0.000235,2]
[392436616,1761474644177,-170.0,0.00023651,2]
[392436617,1761474644189,-1983.43911393,0.00023739,2]
[392436618,1761474644198,-591.05531491,0.00023744,2]
[392436619,1761474644207,-238.03502451,0.00023779,2]
[392436620,1761474644218,-6999.999999,0.0002378,2]
[392436621,1761474644227,-1983.43911393,0.00023893,2]
[392436622,1761474644237,-2663.60188028,0.0002396,2]
[392436623,1761474644248,-1719.58251503,0.00024,2]
[392436624,1761474644257,-164.1534069,0.00024,2]
[392436625,1761474644268,-461.2320702,0.00024,2]
[392436626,1761474644279,-2504.66966646,0.00024142,2]
[392436627,1761474644289,-212.376664,0.00024191,2]
[392436628,1761474644298,-1983.43911393,0.00024281,2]
[392436629,1761474644307,-1983.43911393,0.00024589,2]
[392436630,1761474644317,-509.66425086,0.0002465,2]
[392436631,1761474644326,-200.0,0.00024658,15]
[392436632,1761474644336,-200.0,0.00024658,2]
[392436633,1761474644345,-1000.0,0.00024721,20]
[392436634,1761474644354,-244.0,0.00024721,20]
[392436635,1761474644364,-281.4,0.000248,2]
[392436636,1761474644373,-1983.43911393,0.00024844,2]
[392436637,1761474644382,-591.05531489,0.00024918,2]
[392436638,1761474644392,-1077.20286443,0.00025,2]
[392436639,1761474644401,-1412.58445777,0.00025,2]
[392436640,1761474644411,-363.30070012,0.00025,2]
[392436641,1761474644420,-267.80908367,0.00025,2]
[392436642,1761474644429,-501.0,0.00025,2]
[392436643,1761474644439,-160.0,0.00025,2]
[392436644,1761474644448,-1983.43911393,0.00025039,2]
[392436645,1761474644457,-1116.52651636,0.000251,2]
[392436646,1761474644467,-1983.43911393,0.00025282,2]
[392436647,1761474644477,-170.0,0.00025315,3]
[392436648,1761474644487,-1000.0,0.000255,2]
[392436649,1761474644497,-1152.0,0.00025511,2]
[392436650,1761474644509,-2663.60188028,0.00025519,2]
[392436651,1761474644519,-260.0,0.00025548,2]
[392436652,1761474644528,-301.0,0.00025621,2]
[392436653,1761474644537,-1983.43911403,0.00025704,2]
[392436654,1761474644546,-383.0,0.00025873,2]
[392436655,1761474644555,-10148.03,0.00025912,10]
[392436656,1761474644565,-678.5461897,0.00025922,2]
[392436657,1761474644574,-1022.4389008,0.00025922,2]
[392436658,1761474644584,-421.330196,0.00025922,2]
[392436659,1761474644593,-2467.3106332,0.00025922,2]
[392436660,1761474644604,-4891.5436322,0.00025922,2]
[392436661,1761474644614,-6857.928168,0.0002596,10]
[392436666,1761474646546,-2575.18023849,0.0002596,10]
[392436679,1761474843895,414.6328353,0.0001912,9]
[392436685,1761475385862,259.0,0.00030137,120]
[392436741,1761475832732,-196.0,0.0001515,2]
[392436743,1761475832741,-196.0,0.00015361,2]
[392436745,1761475832751,-196.0,0.00015571,2]
[392436747,1761475832760,-196.0,0.00015782,2]
[392436749,1761475832769,-196.0,0.00015993,2]
[392436751,1761475832779,-196.0,0.00016204,2]
[392436753,1761475832790,-196.0,0.00016414,2]
[392436755,1761475832799,-196.0,0.00016625,2]
[392436757,1761475832808,-196.0,0.00016836,2]
[392436759,1761475832817,-196.0,0.00017046,2]
[392436761,1761475832826,-160.0,0.00017051,2]
[392436763,1761475832835,-403.49456409,0.00017051,2]
[392436765,1761475832845,-196.0,0.00017257,2]
[392436767,1761475832855,-196.0,0.00017468,2]
[392436769,1761475832864,-196.0,0.00017679,2]
[392436771,1761475832873,-196.0,0.00017889,2]
[392436773,1761475832882,-259.18743813,0.000181,2]
[392436775,1761475832891,-168.354034,0.00019144,2]
[392436777,1761475832903,-300.49442408,0.0002001,2]
[392436779,1761475832913,-300.0,0.00021148,2]
[392436781,1761475832922,-632.0,0.00021149,2]
[392436783,1761475832930,-984.0,0.00021149,2]
[392436785,1761475832940,-411.0,0.00021149,2]
[392436787,1761475832950,-2166.0,0.00021149,2]
[392436788,1761475832960,-153.5529871,0.00021249,2]
[392436791,1761475832971,-420.0,0.00023001,2]
[392436793,1761475832981,-632.0,0.00024149,2]
[392436794,1761475832992,-984.0,0.00024149,2]
[392436796,1761475833001,-411.0,0.00024149,2]
[392436799,1761475833011,-624.111,0.00024149,2]
[392436801,1761475833021,-380.0,0.00024658,2]
[392436803,1761475833030,-1664.75117521,0.000248,2]
[392436804,1761475833039,-1000.0,0.000249,2]
[392436818,1761475833161,-1000.0,0.000249,2]
[392436821,1761475833171,-1000.0,0.000249,2]
[392436823,1761475833180,-1000.0,0.000249,2]
[392436825,1761475833190,-1000.0,0.000249,2]
[392436827,1761475833199,-1000.0,0.000249,2]
[392436829,1761475833207,-1000.0,0.000249,2]
[392436831,1761475833216,-1000.0,0.000249,2]
[392436833,1761475833226,-1000.0,0.000249,2]
[392436835,1761475833236,-1000.0,0.000249,2]
[392436837,1761475833245,-5000.0,0.00025,2]
[392436839,1761475833254,-5088.0,0.00025,10]
[392436841,1761475833264,-508.9096423,0.00025014,2]
[392436842,1761475833274,-315.997647,0.00025014,2]